[Event "Superbet Blitz Poland 2022"]
[Site "Warsaw"]
[Date "2022.05.22"]
[Round "7.5"]
[White "Duda, Jan-Krzysztof"]
[Black "Korobov, Anton"]
[Result "1-0"]
[ECO "E12"]
[WhiteElo "2750"]
[BlackElo "2671"]
[Annotator "TA"]
[PlyCount "91"]
[EventDate "2022.05.22"]
[EventType "tourn"]
[EventCountry "POL"]
[SourceTitle "playchess.com"]
[Source "ChessBase"]
[SourceQuality "1"]
[TimeControl "300+2"]

{[%evp 17,91,0,0,0,16,0,0,-4,28,20,53,1,30,26,38,48,43,31,27,16,160,22,34,0,50,54,52,15,26,14,17,31,8,0,195,136,138,103,249,229,332,329,324,329,329,307,671,663,634,522,463,497,463,504,506,454,449,442,875,829,801,789,5106,5077,29961,2148,29976,29977,29977,29978,29975,29976,5106,5102,2585,1834]} 1. d4 {[%emt 0:00:01]} Nf6 {[%emt 0:00:01]} 2. c4 {[%emt 0:00:01]} e6 {[%emt 0:00:02]} 3. Nf3 {[%emt 0:00:03]} b6 {[%emt 0:00:05]} 4. a3 {[%emt 0:00:03]} Bb7 {[%emt 0:00:02]} 5. Nc3 {[%emt 0:00:11]} d5 {[%emt 0:00:02]} 6. cxd5 {[%emt 0:00:18]} Nxd5 {[%emt 0:00:02]} 7. e3 {[%emt 0:00:13]} g6 {[%emt 0:00:14]} 8. Bb5+ {[%emt 0:00:03]} c6 {[%emt 0:00:02]} 9. Bd3 {[%emt 0:00:01]} Bg7 {[%emt 0:00:04]} 10. h4 {[%emt 0:00:02] E12: Queen's Indian: Unusual White 4th moves, 4 a3, 4 Nc3 Bb7 5 a3 and 4 Nc3 Bb7 .} h6 {[%emt 0:00:27]} (10... c5 {is more complex.} 11. h5 Nxc3 12. bxc3 O-O) 11. e4 {[%emt 0:00:09]} Nxc3 {[%emt 0:00:02]} 12. bxc3 {[%emt 0:00:02] [#] The position is equal.} Nd7 $146 {[%emt 0:00:03]} ({Predecessor:} 12... c5 13. Be3 Nd7 14. Qe2 Nf6 15. Bf4 O-O 16. Be5 cxd4 17. cxd4 Rc8 18. O-O Nh5 19. Bxg7 Kxg7 {½-½ (54) Roubalik,J (2391)-Howell,D (2658) Tornelo INT 2021}) 13. e5 {[%emt 0:00:19]} c5 {[%emt 0:00:06]} 14. O-O {[%emt 0:00:08]} ({Better is} 14. Qe2 $14) 14... cxd4 {[%emt 0:00:08]} 15. cxd4 {[%emt 0:00:02]} Rc8 {[%emt 0:00:19]} 16. a4 {[%emt 0:00:07]} O-O {[%emt 0:00:05]} 17. Qe2 {[%emt 0:00:41]} Bxf3 {[%emt 0:00:34]} 18. Qxf3 {[%emt 0:00:01]} Rc3 {[%emt 0:00:18]} (18... Qxh4 $11 19. Be3 Nb8) 19. Rd1 {[%emt 0:00:17] White is more active.} ({White has to play} 19. Ra3 $16 Rc7 20. Qe4) 19... Qxh4 {[%emt 0:00:02]} 20. Be3 {[%emt 0:00:06]} (20. Bb2 $5 {[%cal Rb2c3]} Qxd4 21. Bb5 (21. Bxc3 Qxc3 22. Bb5 Qxf3 $15) 21... Rxf3 22. Bxd4 Nxe5 23. Bxe5 Bxe5 24. gxf3 Bxa1 25. Rxa1 $11) 20... Rd8 {[%emt 0:00:25]} (20... Rfc8 $11) 21. g3 $14 {[%emt 0:00:24]} Qh3 {[%emt 0:00:40][%cal Od7e5]} 22. Be4 {[%emt 0:00:35]} h5 {[%emt 0:00:12]} 23. Rdc1 {[%emt 0:00:08]} Rdc8 {[%emt 0:00:15]} 24. Rxc3 {[%emt 0:00:56] The board is on fire.} Rxc3 {[%emt 0:00:02]} 25. Rc1 {[%emt 0:00:06]} Ra3 {[%emt 0:00:12] [#]} (25... Rxc1+ $11 26. Bxc1 Qg4) 26. Bc6 {[%emt 0:00:10]} (26. Qf4 $18) 26... Nf8 $16 {[%emt 0:00:54]} 27. Be8 {[%emt 0:00:49] A strong pair of Bishops.} Kh7 {This costs Black the game.} (27... Qf5 $2 28. Qxf5 gxf5 29. Rc7 $18) (27... f6 $16 {was called for.}) 28. Bxf7 {[%emt 0:00:00]} (28. Qxf7 $6 Rxe3 29. fxe3 Qxg3+ 30. Kf1 Qxe3) 28... h4 {[%emt 0:00:01]} (28... Rxa4 $142 29. Be8 Rb4) 29. Qg2 $18 {[%emt 0:00:00]} Qf5 {[%emt 0:00:03]} 30. Be8 {[%emt 0:00:00]} hxg3 {[%emt 0:00:20]} 31. Qxg3 {[%emt 0:00:03]} Bh6 $2 {[%emt 0:00:00]} (31... Kg8 32. Qh4 Qf3) 32. Qh4 {[%emt 0:00:04]} Rxe3 {[%emt 0:00:05]} 33. Rc7+ {[%emt 0:00:02]} Kg8 {[%emt 0:00:03]} 34. Bf7+ {[%emt 0:00:01]} (34. Qxh6 {is a self mate.} Re1+ 35. Kg2 Qe4+ 36. f3 Qe2+ 37. Kg3 Rg1+ 38. Kf4 Qd2+ 39. Ke4 Re1+) ({Less strong is} 34. fxe3 Bxe3+ 35. Kg2 (35. Kh2 g5 $17) 35... g5 $18) 34... Qxf7 {[%emt 0:00:06]} 35. Rxf7 {[%emt 0:00:01]} Re1+ {[%emt 0:00:02]} 36. Kg2 {[%emt 0:00:01]} Kxf7 {[%emt 0:00:01]} 37. Qxh6 {[%emt 0:00:01][%mdl 4096] Endgame KQ-KRN} Ra1 {[%emt 0:00:02]} (37... Re4 $142 38. Qd2 g5) 38. Qf4+ {[%emt 0:00:03]} Ke8 {[%emt 0:00:01]} 39. Qe4 {[%emt 0:00:02] [#] aiming for Qc6+.} a5 {[%emt 0:00:10]} 40. Qc6+ {[%emt 0:00:04]} Ke7 {[%emt 0:00:01]} 41. Qxb6 {[%emt 0:00:02]} (41. d5 $142 exd5 42. Qf6+ Ke8 43. e6 Re1 44. Qf7+ Kd8 45. Qxf8+ Kc7 46. e7) 41... Rxa4 {[%emt 0:00:03]} 42. Qc7+ {[%emt 0:00:02]} Nd7 {[%emt 0:00:03]} 43. Qd6+ {[%emt 0:00:01]} Kd8 {[%emt 0:00:01]} 44. d5 {[%emt 0:00:02]} Rg4+ {[%emt 0:00:05]} 45. Kf1 {[%emt 0:00:02]} Rd4 {[%emt 0:00:03]} 46. Qxe6 {[%emt 0:00:01] Weighted Error Value: White=0.24 (precise) /Black=1.01} 1-0

[Event "Superbet Blitz Poland 2022"]
[Site "Warsaw"]
[Date "2022.05.22"]
[Round "8.1"]
[White "Aronian, Levon"]
[Black "Korobov, Anton"]
[Result "1-0"]
[ECO "B50"]
[WhiteElo "2765"]
[BlackElo "2671"]
[Annotator "TA"]
[PlyCount "71"]
[EventDate "2022.05.22"]
[EventType "tourn"]
[EventCountry "POL"]
[SourceTitle "playchess.com"]
[Source "ChessBase"]
[SourceQuality "1"]
[TimeControl "300+2"]

{[%evp 11,71,0,-1,-16,0,0,0,-14,-16,-10,0,-5,-5,0,8,19,16,-2,11,0,68,63,71,54,95,93,124,80,91,44,52,52,16,29,142,156,174,164,147,89,150,152,343,362,379,406,520,534,797,624,1144,1142,1279,1229,1441,1279,29975,3766,29990,29991,29991,29992]} 1. e4 {[%emt 0:00:02]} c5 {[%emt 0:00:01]} 2. Nf3 {[%emt 0:00:01]} d6 {[%emt 0:00:00]} 3. c3 {[%emt 0:00:01]} Nf6 {[%emt 0:00:02]} 4. Be2 {[%emt 0:00:02]} g6 {[%emt 0:00:16]} 5. O-O {[%emt 0:00:02]} Bg7 {[%emt 0:00:02]} 6. d3 {[%emt 0:00:01]} O-O {[%emt 0:00:04]} 7. Be3 {[%emt 0:00:01] B50: Sicilian: 2...d6, Miscellaneous.} Nc6 {[%emt 0:00:09]} 8. Nbd2 {[%emt 0:00:01]} e5 {[%emt 0:00:19] now scores much better than the old 8...Ng4.} 9. a3 {[%emt 0:00:03] The position is equal.} h6 {[%emt 0:00:09]} 10. h3 {[%emt 0:00:01] [#]} Nh5 $146 {[%emt 0:00:10]} ({Predecessor:} 10... Be6 11. b4 b6 12. b5 Na5 13. c4 Nh7 14. g4 f5 15. gxf5 gxf5 16. exf5 Bxf5 {0-1 (63) Aronian,L (2785)-Matlakov,M (2674) Chess.com INT 2022}) 11. Re1 {[%emt 0:00:24]} Nf4 {[%emt 0:00:13]} 12. Bf1 {[%emt 0:00:01][%cal Od3d4]} g5 {[%emt 0:00:17]} (12... Ne6 $5 {[%cal Rf7f5]}) 13. b4 {[%emt 0:00:14]} b6 {[%emt 0:00:05]} 14. b5 {[%emt 0:00:18]} Ne7 {[%emt 0:00:23]} 15. d4 {[%emt 0:00:01]} cxd4 {[%emt 0:00:43]} ({Black should play} 15... exd4 $11 16. cxd4 Ne6) 16. cxd4 $14 {[%emt 0:00:02]} Neg6 {[%emt 0:00:01]} 17. a4 {[%emt 0:00:12]} h5 {[%emt 0:00:12]} 18. dxe5 {[%emt 0:00:09]} g4 {[%emt 0:00:18]} 19. hxg4 {[%emt 0:00:02]} hxg4 {[%emt 0:00:21]} 20. Nd4 {[%emt 0:00:01]} ({Of course not} 20. Bxf4 $6 Nxf4 21. Nd4 dxe5 $11) (20. Nh2 $16) 20... dxe5 {[%emt 0:00:09]} 21. Nf5 {[%emt 0:00:03]} Qg5 {[%emt 0:00:06]} (21... Bxf5 $2 22. exf5 Ne7 23. Qxg4 $18) 22. a5 $36 {[%emt 0:00:32][%mdl 2048] White is pushing.} bxa5 {[%emt 0:00:37]} (22... Rb8 $11 {keeps the balance.}) 23. Rxa5 $16 {[%emt 0:00:24]} Bxf5 {[%emt 0:00:02]} 24. exf5 {[%emt 0:00:01]} Qxf5 {[%emt 0:00:03]} 25. Rxa7 {[%emt 0:00:20]} (25. Qb1 $142 $1 {[%cal Rb1f5]} Qd7 26. Nc4) 25... Rad8 {[%emt 0:00:01] [#]} (25... Nd5 $142 26. Nc4 e4) 26. Qb1 $1 {[%emt 0:00:26]} Qh5 {[%emt 0:00:06] [#] This costs Black the game.} (26... Nh4 $16 {is a better defense.} 27. b6 Qxb1 28. Rxb1 Nf5) 27. Ne4 $1 $18 {[%emt 0:00:22]} Nh4 {[%emt 0:00:13][%cal Of4g2]} 28. Ng3 {[%emt 0:00:02]} Qg5 {[%emt 0:00:09]} 29. b6 {[%emt 0:00:04]} f5 {[%emt 0:00:04]} 30. b7 {[%emt 0:00:27]} Nh3+ {[%emt 0:00:13]} 31. gxh3 {[%emt 0:00:08]} f4 {[%emt 0:00:00]} 32. Ne4 {[%emt 0:00:16]} Qh5 {[%emt 0:00:23] [#]} 33. Rd1 $1 {[%emt 0:00:55] Intending Rxd8 and mate.} gxh3 {[%emt 0:00:11]} (33... Nf3+ 34. Kh1) 34. Rxd8 {[%emt 0:00:03]} Qg4+ {[%emt 0:00:03]} 35. Kh1 {[%emt 0:00:08]} Rxd8 {[%emt 0:00:03]} 36. b8=Q {[%emt 0:00:02] Weighted Error Value: White=0.13 (very precise) /Black=0.79} 1-0

[Event "Superbet Blitz Poland 2022"]
[Site "Warsaw"]
[Date "2022.05.22"]
[Round "8.2"]
[White "Gavrilescu, David"]
[Black "Duda, Jan-Krzysztof"]
[Result "0-1"]
[ECO "B29"]
[WhiteElo "2518"]
[BlackElo "2750"]
[Annotator "TA"]
[PlyCount "74"]
[EventDate "2022.05.22"]
[EventType "tourn"]
[EventCountry "POL"]
[SourceTitle "playchess.com"]
[Source "ChessBase"]
[SourceQuality "1"]
[TimeControl "300+2"]

{[%evp 12,74,66,46,49,41,47,47,45,49,53,35,70,18,35,25,113,113,119,114,127,97,135,139,189,190,190,0,0,0,0,0,0,-48,-45,-28,-32,-136,-137,-214,-164,-285,-214,-293,-204,-515,-352,-293,-238,-292,-275,-678,-696,-690,-670,-29959,-29966,-29967,-29966,-29985,-29986,-29988,-29989,-29989,-29990]} 1. e4 {[%emt 0:00:02]} c5 {[%emt 0:00:01]} 2. Nf3 {[%emt 0:00:02]} Nf6 {[%emt 0:00:01]} 3. e5 {[%emt 0:00:01]} Nd5 {[%emt 0:00:00]} 4. Nc3 {[%emt 0:00:01]} Nxc3 {[%emt 0:00:02]} 5. dxc3 {[%emt 0:00:01]} Nc6 {[%emt 0:00:00]} 6. Bf4 {[%emt 0:00:03]} e6 {[%emt 0:00:03]} 7. Qd2 {[%emt 0:00:02]} h6 {[%emt 0:00:05] B29: Sicilian: 2 Nf3 Nf6 (Nimzowitsch Variation).} 8. h4 {[%emt 0:00:01]} a6 $5 {[%emt 0:00:03][%mdl 4] A promising side line.} 9. c4 {[%emt 0:00:23]} Qc7 {[%emt 0:00:07] White is slightly better.} 10. h5 {[%emt 0:00:06]} b6 {[%emt 0:00:09] [#]} 11. O-O-O $146 {[%emt 0:00:14]} ({Predecessor:} 11. Be2 Bb7 12. c3 O-O-O 13. O-O-O Ne7 14. Qd6 g5 15. Qxc7+ Kxc7 16. Bh2 Be4 17. Rd2 {½-½ (48) Khanin,S (2510)-Kokarev,D (2604) St Petersburg 2018}) 11... Bb7 {[%emt 0:00:03][%cal Ob6b5]} 12. Be2 {[%emt 0:00:05]} (12. Kb1 $14) 12... b5 {[%emt 0:00:08]} 13. Rh3 {[%emt 0:00:07]} (13. cxb5 axb5 14. Kb1 (14. Bxb5 Rxa2 15. c3 Be7 $15) 14... c4 $11) 13... Na5 {[%emt 0:01:01]} (13... bxc4 $11 14. Bxc4 Na5) 14. cxb5 $16 {[%emt 0:00:30]} axb5 {[%emt 0:00:01]} 15. Bxb5 {[%emt 0:00:04]} Bd5 {[%emt 0:00:02]} 16. a4 {[%emt 0:00:14]} Qb7 {[%emt 0:01:21]} 17. Qe2 {[%emt 0:01:06] Inhibits Nc4.} c4 {[%emt 0:00:38]} (17... Bc6 $16 18. Rg3 Rb8) 18. Nd4 $18 {[%emt 0:00:13]} Bxg2 {[%emt 0:00:20]} 19. Nxe6 $2 {[%emt 0:00:25] [#]} fxe6 $11 {[%emt 0:00:16]} (19... Bxh3 20. Rxd7 Qxb5 21. Rd8+ (21. axb5 Bxe6 22. Qe4 Nb3+ 23. cxb3 Ra1+ 24. Kc2 cxb3+ 25. Kc3 Bxd7 $11) 21... Rxd8 22. Nc7+ Kd7 23. Nxb5 $18) 20. Bxd7+ {[%emt 0:00:11]} Qxd7 {[%emt 0:00:07]} ({Don't take} 20... Kf7 21. Qg4 Bxh3 22. Bxe6+ Ke7 23. Qxh3 $18) 21. Rxd7 {[%emt 0:00:02]} Kxd7 {[%emt 0:00:00] Chess con chili.} 22. Rg3 {[%emt 0:00:37]} (22. Rh4 $1 $11 Bd5 23. Be3) 22... Bd5 $15 {[%emt 0:00:02]} 23. Bd2 $1 {[%emt 0:00:29]} Nc6 {[%emt 0:00:30]} 24. Bc3 {[%emt 0:00:19]} ({White should try} 24. b3 $15 Ba3+ 25. Kb1) 24... Rxa4 $17 {[%emt 0:00:03]} 25. Qe3 {[%emt 0:00:08]} (25. Rg4 $17 Ra1+ 26. Kd2) 25... Kc7 {[%emt 0:00:16][%cal Bd7c7,Bc7d8,Bd8c8][%mdl 32] Strongly threatening ...Ra1+.} 26. Qf4 {[%emt 0:00:03]} (26. Kb1 $142) 26... Ra1+ $19 {[%emt 0:00:07]} 27. Kd2 {[%emt 0:00:01][%cal Ob2b3]} Ra7 {[%emt 0:00:01][%cal Ba1a7,Ba7d7,Bd7f7][%mdl 32] [#] Threatens to win with ...Kb6.} 28. Qf7+ $2 {[%emt 0:00:11]} (28. Bd4 Nxd4 29. Qxd4) 28... Kd8 {[%emt 0:00:12]} 29. Qf4 {[%emt 0:00:03]} Kc8 {[%emt 0:00:03] aiming for ...Bc5.} 30. Bd4 {[%emt 0:00:03] Against Bc5} Rd7 {[%emt 0:00:02]} 31. c3 {[%emt 0:00:01]} (31. Kc1) 31... Nxd4 {[%emt 0:00:05]} 32. cxd4 {[%emt 0:00:01]} Bb4+ {[%emt 0:00:02]} 33. Kc2 {[%emt 0:00:01]} Rf8 {[%emt 0:00:00] Black mates.} 34. Qe3 {[%emt 0:00:06]} Rdf7 {[%emt 0:00:01]} 35. f4 {[%emt 0:00:01]} Rxf4 {[%emt 0:00:03]} 36. Rxg7 {[%emt 0:00:05]} Rf2+ {[%emt 0:00:01]} 37. Kb1 {[%emt 0:00:05]} Rf1+ {[%emt 0:00:02] Never resign too early!  Weighted Error Value: White=0.77/Black=0.25 (precise)} 0-1

[Event "Superbet Blitz Poland 2022"]
[Site "Warsaw"]
[Date "2022.05.22"]
[Round "8.4"]
[White "Anand, Viswanathan"]
[Black "Rapport, Richard"]
[Result "1/2-1/2"]
[ECO "B51"]
[WhiteElo "2751"]
[BlackElo "2776"]
[Annotator "TA"]
[PlyCount "119"]
[EventDate "2022.05.22"]
[EventType "tourn"]
[EventCountry "POL"]
[SourceTitle "playchess.com"]
[Source "ChessBase"]
[SourceQuality "1"]
[TimeControl "300+2"]

{[%evp 9,119,0,22,18,33,15,32,17,16,18,30,-33,-31,-28,-16,-31,-14,-13,26,7,18,25,46,33,43,24,71,29,28,33,124,114,112,108,117,122,99,91,148,147,140,105,168,51,93,52,55,81,61,34,99,87,77,93,262,267,263,263,256,271,319,227,249,248,356,355,322,310,504,495,881,881,870,865,823,822,671,502,501,183,551,535,511,500,478,270,470,458,424,354,332,323,277,0,0,0,8,0,0,0,0,0,0,0,0,0,0,0,0,0,0,0]} 1. e4 {[%emt 0:00:01]} c5 {[%emt 0:00:01]} 2. Nf3 {[%emt 0:00:02]} d6 {[%emt 0:00:01]} 3. Bb5+ {[%emt 0:00:01]} Nd7 {[%emt 0:00:02]} 4. d4 {[%emt 0:00:02]} cxd4 {[%emt 0:00:02]} 5. Nxd4 {[%emt 0:00:01]} a6 {[%emt 0:00:04]} 6. Bd3 {[%emt 0:00:02] B51: Sicilian: Moscow Variation (3 Bb5+) without 3...Bd7.} g6 {[%emt 0:00:02]} 7. c4 {[%emt 0:00:09]} Bg7 {[%emt 0:00:04]} 8. Be3 {[%emt 0:00:10] [#] White is slightly better.} Qb6 $146 {[%emt 0:00:03]} ({Predecessor:} 8... Ngf6 9. Nc3 O-O 10. Be2 e6 11. O-O d5 12. exd5 exd5 13. cxd5 Nb6 14. Bg5 Nbxd5 {½-½ (85) Esipenko,A (2720)-Parkhov,Y (2434) Chess.com INT 2021}) 9. Nb3 {[%emt 0:00:07]} Qc7 {[%emt 0:00:27]} 10. Nc3 {[%emt 0:00:03]} (10. Qd2 $11) 10... Bxc3+ $15 {[%emt 0:00:03]} 11. bxc3 {[%emt 0:00:01]} Ngf6 {[%emt 0:00:06]} 12. O-O {[%emt 0:00:10]} b6 {[%emt 0:00:04]} 13. f3 {[%emt 0:00:05]} h5 {[%emt 0:00:13]} 14. a4 {[%emt 0:00:11]} a5 {[%emt 0:00:04]} 15. Nd4 {[%emt 0:00:01]} Ne5 {[%emt 0:00:18]} 16. Nb5 {[%emt 0:00:02]} Qc6 {[%emt 0:00:03]} 17. Be2 $36 {[%emt 0:00:15][%mdl 2048] Black is under pressure.} Be6 {[%emt 0:00:12]} (17... O-O $11 {feels stronger.}) 18. Nd4 {[%emt 0:00:12]} (18. f4 $5 {[%cal Rf4e5]}) 18... Qc5 {[%emt 0:00:02]} 19. Nf5 {[%emt 0:00:18]} Qc8 {[%emt 0:00:16]} (19... Qc7 $14 20. Ng7+ Kf8 21. Nxe6+ fxe6) 20. Ng7+ $16 {[%emt 0:00:02]} Kf8 {[%emt 0:00:01]} 21. Nxe6+ {[%emt 0:00:01]} Qxe6 {[%emt 0:00:01]} 22. Bxb6 {[%emt 0:00:02]} Nxc4 {[%emt 0:00:06]} 23. Bd4 {[%emt 0:00:05]} Rc8 {[%emt 0:00:05]} (23... h4 $142) 24. Rb1 {[%emt 0:00:02]} h4 {[%emt 0:00:05]} 25. Rb5 {[%emt 0:00:07]} Rh5 {[%emt 0:00:02]} (25... h3 $16) 26. Qb3 {[%emt 0:00:08]} ({White should play} 26. Rxh5 $18 Nxh5 27. f4) 26... h3 {[%emt 0:00:31]} 27. g4 {[%emt 0:00:20]} Rxb5 {[%emt 0:00:41]} 28. axb5 {[%emt 0:00:02]} Nd7 {[%emt 0:00:02]} 29. Ra1 {[%emt 0:00:07]} d5 {[%emt 0:00:42]} (29... Ndb6 $14) 30. Bxc4 {[%emt 0:00:08]} dxc4 {[%emt 0:00:06]} 31. Qd1 {[%emt 0:00:27]} Ra8 $2 {[%emt 0:00:06]} (31... Qd6 $16) 32. Qf1 $18 {[%emt 0:00:04]} f6 {[%emt 0:00:25]} 33. Qxh3 {[%emt 0:00:01]} Kg7 {[%emt 0:00:01] [#]} 34. Qg3 $1 {[%emt 0:00:04]} g5 {[%emt 0:00:19]} 35. Qc7 {[%emt 0:00:02]} Ne5 {[%emt 0:00:01]} 36. Bxe5 {[%emt 0:00:07]} Qxe5 {[%emt 0:00:09]} (36... fxe5 $142 37. Ra2 (37. Rxa5 Rxa5 38. Qxa5 Qd7 $16) 37... a4) 37. Qxe5 {[%emt 0:00:02]} ({And not} 37. Qxc4 Rd8 38. Rf1 (38. Rxa5 {is a self mate.} Rd2 39. f4 Qxf4) 38... Rd2 $14) 37... fxe5 {[%emt 0:00:00][%mdl 4096] Endgame KR-KR} 38. Ra4 {[%emt 0:00:05]} Kf6 $2 {[%emt 0:00:03]} (38... Rd8 39. Rxa5 Rd1+ 40. Kg2 Rb1) 39. Rxc4 {[%emt 0:00:07]} Ke6 {[%emt 0:00:07]} (39... a4 $142 40. Rc6+ Kg7) 40. Ra4 {[%emt 0:00:04]} Kd6 {[%emt 0:00:02]} 41. c4 {[%emt 0:00:03]} Kc5 {[%emt 0:00:01]} 42. Kg2 {[%emt 0:00:01]} Kb6 {[%emt 0:00:01]} 43. Kg3 {[%emt 0:00:01] [#] h4 is the strong threat.} Rh8 {[%emt 0:00:02]} 44. Ra1 $2 {[%emt 0:00:04]} (44. Ra2 Rc8 45. Ra4) 44... Rh6 $2 {[%emt 0:00:02]} (44... e6 45. Kg2 Rh7) 45. Rd1 {[%emt 0:00:20]} Rd6 {[%emt 0:00:21]} 46. Rc1 {[%emt 0:00:06] Intending c5+ and mate.} Rh6 {[%emt 0:00:01]} 47. h3 {[%emt 0:00:04]} (47. Ra1 $142 Rh4 48. Rd1) 47... Kc5 $2 {[%emt 0:00:02]} (47... a4 {was worth a try.} 48. Ra1 Ka5) 48. Ra1 {[%emt 0:00:01]} Kb6 {[%emt 0:00:01]} 49. Rd1 {[%emt 0:00:02] Hoping for Rd8.} Rd6 {[%emt 0:00:01]} 50. Rg1 {[%emt 0:00:27] Strongly threatening h4.} Rh6 {[%emt 0:00:02] Inhibits h4.} 51. h4 $2 {[%emt 0:00:02]} (51. Ra1 $18) 51... Rxh4 $11 {[%emt 0:00:04] The position is equal.} 52. Rd1 {[%emt 0:00:01] Black must now prevent Rd8.} Rh8 {[%emt 0:00:06] Inhibits Rd8.} 53. Ra1 {[%emt 0:00:11]} Ra8 {[%emt 0:00:03]} 54. Ra4 {[%emt 0:00:03]} Rd8 {[%emt 0:00:08]} 55. Kf2 {[%emt 0:00:02]} Rd3 {[%emt 0:00:01]} 56. Ke2 {[%emt 0:00:02]} Rc3 {[%emt 0:00:01]} 57. Kf2 {[%emt 0:00:01]} Rb3 {[%emt 0:00:02]} 58. Ke2 {[%emt 0:00:02]} Rc3 {[%emt 0:00:03]} 59. Kf2 {[%emt 0:00:02]} Rb3 {[%emt 0:00:04]} 60. Ke2 {[%emt 0:00:01] Black escapes into a draw.  Weighted Error Value: White=0.26 (precise) /Black=0.42} 1/2-1/2

[Event "Superbet Blitz Poland 2022"]
[Site "Warsaw"]
[Date "2022.05.22"]
[Round "9.1"]
[White "Caruana, Fabiano"]
[Black "Aronian, Levon"]
[Result "1/2-1/2"]
[ECO "A18"]
[WhiteElo "2786"]
[BlackElo "2765"]
[Annotator "TA"]
[PlyCount "114"]
[EventDate "2022.05.22"]
[EventType "tourn"]
[EventCountry "POL"]
[SourceTitle "playchess.com"]
[Source "ChessBase"]
[SourceQuality "1"]
[TimeControl "300+2"]

{[%evp 12,114,34,10,11,0,0,0,0,0,10,0,0,0,0,-7,0,-6,0,0,0,4,0,0,0,0,0,0,0,-8,0,0,0,-31,-11,-17,0,0,0,0,0,0,0,0,0,0,0,0,0,0,0,0,0,0,0,-2,46,43,65,0,34,0,0,0,0,0,0,0,22,0,87,0,0,0,0,0,0,0,0,0,0,0,0,0,0,0,0,0,0,0,0,0,0,0,0,0,0,0,0,0,0,0,0,0,0]} 1. c4 {[%emt 0:00:02]} Nf6 {[%emt 0:00:01]} 2. Nc3 {[%emt 0:00:01]} e6 {[%emt 0:00:01]} 3. e4 {[%emt 0:00:02]} d5 {[%emt 0:00:01]} 4. e5 {[%emt 0:00:02]} d4 {[%emt 0:00:02]} 5. exf6 {[%emt 0:00:01]} dxc3 {[%emt 0:00:01]} 6. bxc3 {[%emt 0:00:01]} Qxf6 {[%emt 0:00:02]} 7. Nf3 {[%emt 0:00:02]} b6 {[%emt 0:00:08] A18: English Opening: Flohr-Mikenas System (1 c4 Nf6 2 Nc3 e6 3 e4).} 8. g3 {[%emt 0:00:01]} Bb7 {[%emt 0:00:06]} 9. Bg2 {[%emt 0:00:02]} Bd6 {[%emt 0:00:15]} 10. d4 {[%emt 0:00:02] [#] Threatens to win with Bg5.} h6 {[%emt 0:00:03] Inhibits Bg5.} 11. O-O {[%emt 0:00:02]} O-O {[%emt 0:00:04]} 12. Re1 {[%emt 0:00:01]} Rd8 {[%emt 0:00:15]} 13. Qd3 {[%emt 0:00:02]} Nd7 {[%emt 0:00:25][%cal Bb8d7,Bd7f6,Bf6e4][%mdl 32] [#]} 14. h4 $146 {[%emt 0:00:20]} ({Predecessor:} 14. a4 e5 15. Ra2 exd4 16. cxd4 Bb4 17. Re3 Nc5 18. Qe2 Ne6 19. d5 Nf8 20. Bb2 {½-½ (38) Aronian,L (2773)-Duda,J (2753) chess24.com INT 2020}) 14... Qf5 {[%emt 0:00:27]} (14... Rab8 {with more complications.} 15. Ng5 Qf5 16. Ne4 e5) 15. Qxf5 {[%emt 0:00:25]} exf5 {[%emt 0:00:01]} 16. a4 {[%emt 0:00:05]} a5 {[%emt 0:00:12]} 17. Be3 {[%emt 0:00:08][%cal Bc1e3,Be3d4,Bd4e5][%mdl 32]} Nf6 {[%emt 0:00:21]} 18. c5 {[%emt 0:00:46]} bxc5 {[%emt 0:00:11]} 19. dxc5 {[%emt 0:00:02]} Bf8 {[%emt 0:00:01]} 20. Bd4 {[%emt 0:00:42]} Ne4 {[%emt 0:00:01]} 21. Ne5 {[%emt 0:00:09]} Bd5 {[%emt 0:00:01]} 22. c6 {[%emt 0:00:20]} Bd6 {[%emt 0:00:40]} 23. g4 {[%emt 0:00:15]} Bxe5 {[%emt 0:00:55]} 24. Bxe5 {[%emt 0:00:02]} Re8 {[%emt 0:00:02]} (24... Bxc6 $2 25. gxf5 Re8 26. Rxe4 $18 (26. Bxe4 Bxe4 27. Rxe4 f6 $16)) 25. f4 {[%emt 0:00:59]} fxg4 {[%emt 0:00:49]} 26. Bxe4 {[%emt 0:00:36]} Bxe4 {[%emt 0:00:01]} 27. Rxe4 {[%emt 0:00:01]} f6 {[%emt 0:00:01]} 28. Rd1 {[%emt 0:00:01][%cal Od1d7]} fxe5 {[%emt 0:00:15]} 29. fxe5 $11 {[%emt 0:00:01][%mdl 4096] Endgame KRR-KRR} Ra6 {[%emt 0:00:12]} 30. Rd7 {[%emt 0:00:17]} Rxc6 {[%emt 0:00:01]} 31. Rxg4 {[%emt 0:00:01]} g6 {[%emt 0:00:05]} 32. Rd5 {[%emt 0:00:02]} Kf7 {[%emt 0:00:09]} 33. c4 {[%emt 0:00:03]} Rb6 {[%emt 0:00:07]} (33... Rb8 $11 {is superior.}) 34. Rxa5 $14 {[%emt 0:00:09]} Rb2 {[%emt 0:00:01]} 35. Rd5 {[%emt 0:00:07]} (35. Rc5 $14) 35... Ra2 {[%emt 0:00:07]} 36. a5 {[%emt 0:00:05]} Ra8 {[%emt 0:00:02]} 37. e6+ {[%emt 0:00:11]} Kf6 {[%emt 0:00:03]} 38. Re4 {[%emt 0:00:05] Strongly threatening Rd7.} Re8 {[%emt 0:00:03]} 39. Rde5 {[%emt 0:00:01]} Re7 {[%emt 0:00:02]} 40. Re3 {[%emt 0:00:02]} c6 {[%emt 0:00:03] [#]} (40... c5 $11 {keeps the balance.}) 41. Rc5 {[%emt 0:00:02]} ({White should play} 41. Re2 $1 $16 {[%cal Re2a2]} Ra4 42. Rc5) 41... Rxe6 $11 {[%emt 0:00:02] The position is equal.} (41... g5 {seems wilder.} 42. h5 g4 43. Rce5 c5) 42. Rxe6+ {[%emt 0:00:01]} Kxe6 {[%emt 0:00:01]} 43. Rxc6+ {[%emt 0:00:00] KR-KR} Kf5 {[%emt 0:00:01]} 44. a6 {[%emt 0:00:02] Hoping for c5.} h5 {[%emt 0:00:04]} 45. c5 {[%emt 0:00:01] aiming for Rb6.} g5 {[%emt 0:00:00]} 46. hxg5 {[%emt 0:00:02]} Kxg5 {[%emt 0:00:01]} 47. Rd6 {[%emt 0:00:03]} Kf5 {[%emt 0:00:05]} 48. Rh6 {[%emt 0:00:04]} Ke5 {[%emt 0:00:03]} 49. Kf1 {[%emt 0:00:04]} Kd5 {[%emt 0:00:02]} 50. Rxh5+ {[%emt 0:00:02]} (50. c6 $5 {[%cal Rc6c7]} Rxa6 51. Kg2 $11) 50... Kd4 {[%emt 0:00:02]} 51. c6 {[%emt 0:00:03] White wants to mate with c7.} Rxa6 {[%emt 0:00:01]} 52. Rh6 {[%emt 0:00:01]} Kd5 {[%emt 0:00:02]} 53. c7 {[%emt 0:00:02]} Ra1+ {[%emt 0:00:01]} 54. Ke2 {[%emt 0:00:01]} Rc1 {[%emt 0:00:01]} 55. Rh7 {[%emt 0:00:01]} Kd6 {[%emt 0:00:00]} 56. Kd2 {[%emt 0:00:00]} Rxc7 {[%emt 0:00:01]} 57. Rxc7 {[%emt 0:00:01]} Kxc7 {[%emt 0:00:01] Weighted Error Value: White=0.07 (flawless) /Black=0.07 (flawless)} 1/2-1/2